bitfinex/quotes_ETHUSD_20251018
["timestamp","ask_amount","ask_price","bid_price","bid_amount"]
[1760772155343,2.677,3897.8,3897.3,2.56584345]
[1760772155684,0.4326,3897.7,3897.6,2.56568144]
[1760772156036,3.1096,3897.7,3897.6,2.56568144]
[1760772156766,0.0447113,3897.9,3897.8,2.56554979]
[1760772156972,2.7217113,3897.9,3897.8,2.56554979]
[1760772157443,0.0447113,3897.9,3897.8,2.56554979]
[1760772157648,0.5606,3898.4,3897.6,2.69368144]
[1760772157649,0.4326,3898.4,3898.3,2.56522073]
[1760772157850,3.1096,3898.4,3898.3,2.56522073]
[1760772158044,3.1096,3898.4,3898.1,2.56529458]
[1760772158350,3.1096,3898.3,3898.1,2.56534468]
[1760772158751,0.4326,3898.2,3898.1,2.56534468]
[1760772159362,0.04470421,3898.4,3898.0,2.56541558]
[1760772159552,2.677,3898.3,3898.1,2.56529911]
[1760772159873,0.4326,3898.3,3898.1,2.56529911]
[1760772160081,0.4326,3898.3,3897.8,0.128]
[1760772160082,2.677,3898.2,3897.8,0.128]
[1760772160280,3.1096,3898.2,3898.0,2.5653982]
[1760772160490,0.4326,3898.2,3898.1,2.56535235]
[1760772160673,0.04470421,3898.4,3898.3,2.56522073]
[1760772160987,2.677,3898.4,3898.3,2.69322073]
[1760772161286,3.1096,3898.4,3898.3,2.69322073]
[1760772162177,0.04470218,3898.8,3898.3,0.128]
[1760772162347,0.4326,3898.7,3898.3,0.128]
[1760772162555,2.677,3898.6,3898.5,2.56503082]
[1760772163078,0.4326,3898.6,3898.5,2.56503082]
[1760772163381,2.677,3898.6,3898.5,2.56503082]
[1760772163589,0.04470218,3898.8,3898.6,2.56500314]
[1760772163764,0.4326,3898.7,3898.3,2.69321998]
[1760772164078,2.677,3898.6,3898.5,2.56508913]
[1760772164677,0.4326,3898.7,3898.5,2.56508913]
[1760772164880,0.4326,3898.6,3898.3,0.128]
[1760772165082,3.1096,3898.6,3898.3,0.128]
[1760772165253,3.1096,3898.6,3898.3,2.69320902]
[1760772166062,0.4326,3898.5,3898.3,2.69320902]
[1760772167280,0.98451629,3898.7,3898.4,2.56513223]
[1760772167488,0.98451629,3898.7,3898.3,0.128]
[1760772167489,2.56508916,3898.5,3898.3,0.128]
[1760772167690,0.4326,3898.4,3898.3,0.128]
[1760772168265,0.47730314,3898.4,3898.3,0.128]
[1760772168990,0.04470314,3898.4,3898.3,2.69322073]
[1760772169293,2.72170314,3898.4,3898.3,2.69322073]
[1760772169969,0.04470314,3898.4,3898.3,2.69322073]
[1760772170486,0.5523882,3898.8,3898.7,2.56495754]
[1760772170690,5.00208831,3898.8,3898.7,2.56495754]
[1760772170891,5.00208831,3898.8,3898.7,2.69295754]
[1760772171258,2.32508831,3898.8,3898.7,2.69295754]
[1760772171676,5.00208831,3898.8,3898.7,2.69295754]
[1760772173398,3.27408831,3898.8,3898.7,2.69295754]
[1760772173604,2.72170011,3898.8,3898.7,2.69295754]
[1760772174672,0.04470011,3898.8,3898.7,2.69295754]
[1760772174885,2.72170011,3898.8,3898.7,2.69295754]
[1760772175393,0.4326,3899.6,3899.3,2.56449728]
[1760772175593,0.55268472,3899.5,3899.3,2.56449728]
[1760772175810,2.28068472,3899.4,3899.3,2.56449728]
[1760772176591,2.71328472,3899.4,3899.1,2.69263109]
[1760772176792,0.98528472,3899.3,3899.1,2.69263109]
[1760772176997,0.4326,3899.3,3899.1,2.69263109]
[1760772177198,2.676,3899.2,3899.1,2.69263109]
[1760772177588,3.66103873,3899.2,3899.1,2.69263109]
[1760772177983,0.55243873,3899.2,3899.1,2.69263109]
[1760772178219,0.04469567,3899.5,3899.4,2.5644971]
[1760772178514,2.72069567,3899.5,3899.4,2.5644971]
[1760772178716,0.04469567,3899.5,3899.4,2.5644971]
[1760772178916,2.72069567,3899.5,3899.4,2.5644971]
[1760772179100,0.04469567,3899.5,3899.4,2.5644971]
[1760772179296,2.72069567,3899.5,3899.4,2.5644971]
[1760772179889,0.04469567,3899.5,3899.4,2.5644971]
[1760772180090,2.72069567,3899.5,3899.4,2.5644971]
[1760772180723,0.04469567,3899.5,3899.4,2.5644971]
[1760772180922,2.72069567,3899.5,3898.3,0.6336]
[1760772181225,2.72069567,3899.5,3899.4,2.5644971]
[1760772181587,0.04469567,3899.5,3899.4,2.5644971]
[1760772181788,2.72069567,3899.5,3899.4,2.5644971]
[1760772181993,0.04469567,3899.5,3899.4,2.5644971]
[1760772182207,2.72069567,3899.5,3899.4,2.5644971]
[1760772183625,0.04469567,3899.5,3899.4,2.5644971]
[1760772183945,2.72069567,3899.5,3899.4,2.5644971]
[1760772184231,3.15419567,3899.5,3899.4,2.5644971]
[1760772185309,3.15419567,3899.5,3898.4,0.6336]
[1760772185511,0.4335,3899.4,3899.0,2.56469692]
[1760772185723,0.4335,3899.3,3898.8,2.56489073]
[1760772185922,0.4335,3899.2,3898.9,2.56482597]
[1760772186122,2.675,3899.1,3899.0,2.56476019]
[1760772188332,0.4335,3899.4,3899.3,2.56456287]
[1760772188537,3.1085,3899.4,3899.3,2.56456287]
[1760772188751,3.1085,3899.4,3899.3,2.69256287]
[1760772189439,0.4335,3899.4,3899.3,2.69256287]
[1760772189643,3.1085,3899.4,3899.3,2.69256287]
[1760772190015,0.04469567,3899.5,3899.4,2.5644971]
[1760772190445,2.675,3899.5,3899.4,2.5644971]
[1760772191151,6.39,3899.7,3899.6,2.56436557]
[1760772191446,9.065,3899.7,3899.6,2.69236557]
[1760772192350,9.4985,3899.7,3899.6,2.69236557]
[1760772193121,6.8235,3899.7,3899.6,0.128]
[1760772193430,9.4985,3899.7,3899.6,0.128]
[1760772194117,9.4985,3899.7,3898.7,2.56494407]
[1760772194118,9.4985,3899.7,3899.4,2.56445214]
[1760772194434,0.4335,3899.6,3899.3,2.69253144]
[1760772194755,0.4335,3899.5,3899.4,2.56449188]
[1760772194915,3.1075,3899.5,3899.4,2.56449188]
[1760772195652,0.4335,3899.5,3899.4,2.56449188]
[1760772195828,3.1075,3899.5,3899.4,2.56449188]
[1760772197845,0.4335,3899.5,3899.4,2.56449188]
[1760772198028,3.1075,3899.5,3899.3,2.69251888]
[1760772198228,2.674,3899.5,3899.4,2.5644971]
[1760772198463,6.39,3899.7,3899.6,2.56436557]
[1760772198666,9.61732474,3899.7,3899.6,2.56436557]
[1760772198959,10.05082474,3899.7,3899.6,2.56436557]
[1760772199458,10.05082474,3899.7,3899.5,2.5644179]
[1760772199667,0.4335,3899.6,3899.5,2.5644179]
[1760772199830,0.98700589,3899.6,3899.3,2.69254134]
[1760772200026,3.1075,3899.5,3899.4,2.56448716]
[1760772201457,6.39,3899.7,3899.6,2.56436557]
[1760772201763,9.064,3899.7,3899.6,2.56436557]
[1760772201929,9.4975,3899.7,3899.6,2.56436557]
[1760772202132,10.05124729,3899.7,3899.6,2.56436557]
[1760772203157,3.66124729,3899.7,3899.5,2.56443041]
[1760772203334,0.98724729,3899.6,3899.5,2.56443041]
[1760772204563,3.22674729,3899.6,3899.5,2.56443041]
[1760772204867,0.55374729,3899.6,3899.5,2.56443041]
[1760772205085,0.26699207,3899.9,3899.8,2.56423406]
[1760772205086,0.04469207,3899.9,3899.8,2.56423406]
[1760772205284,4.99983659,3899.9,3899.8,2.56423406]
[1760772206853,2.32683659,3899.9,3899.8,2.56423406]
[1760772207051,4.99983659,3899.9,3899.8,2.56423406]
[1760772207784,4.99983659,3899.9,3899.8,3.19783406]
[1760772207785,0.59883659,3899.9,3899.8,3.19783406]
[1760772207985,2.71769207,3899.9,3899.8,2.56423406]
[1760772210393,2.71769207,3899.9,3899.8,2.69223406]
[1760772210788,2.71769207,3899.9,3899.1,2.56469347]
[1760772210789,3.94540982,3899.9,3899.1,2.56469347]
[1760772210989,1.02637067,3899.8,3899.4,2.69248166]
[1760772211197,0.99431775,3899.7,3899.5,2.56442788]
[1760772211372,3.1133,3899.6,3899.5,2.56442788]
[1760772213808,3.66736037,3899.6,3899.5,2.56442788]
[1760772214005,3.66736037,3899.6,3899.4,2.69248653]
[1760772214210,2.673,3899.6,3899.5,2.56443133]
[1760772214379,3.22707034,3899.6,3899.5,2.56443133]
[1760772214707,3.66737034,3899.6,3899.4,0.128]
[1760772214906,2.75442573,3899.5,3899.0,0.002]
[1760772215203,1.728,3899.3,3899.0,0.002]
[1760772215406,1.728,3899.1,3899.0,0.002]
[1760772215593,2.28207034,3899.1,3899.0,0.002]
[1760772215802,5.31912343,3899.1,3899.0,0.002]
[1760772215995,5.28706475,3899.1,3899.0,0.002]
[1760772216389,6.20969801,3899.1,3899.0,0.002]
[1760772217214,5.28706475,3899.1,3899.0,0.002]
[1760772217775,9.08257511,3899.1,3899.0,0.002]
[1760772217978,9.4614964,3899.1,3899.0,0.002]
[1760772220478,9.08257511,3899.1,3899.0,0.002]
[1760772223412,15.47257511,3899.1,3899.0,0.002]
[1760772224617,9.08257511,3899.1,3899.0,0.002]
[1760772227586,3.11876475,3899.1,3899.0,0.002]
[1760772227792,3.25712902,3899.1,3899.0,0.002]
[1760772228424,7.54982343,3899.1,3899.0,0.002]
[1760772228590,7.51776475,3899.1,3899.0,0.002]
[1760772229106,4.95307034,3899.1,3899.0,0.002]
[1760772229616,2.28207034,3899.1,3899.0,0.002]
[1760772230197,4.95307034,3899.1,3899.0,0.002]
[1760772231586,2.28207034,3899.1,3899.0,0.002]
[1760772231814,4.399,3899.1,3899.0,0.002]
[1760772232010,4.95307034,3899.1,3899.0,0.002]
[1760772233907,7.99012343,3899.1,3899.0,0.002]
[1760772234103,7.95806475,3899.1,3899.0,0.002]
[1760772234425,7.95706475,3899.1,3899.0,0.002]
[1760772235450,5.39237034,3899.1,3899.0,0.002]
[1760772235836,7.95706475,3899.1,3899.0,0.002]
[1760772237554,5.28706475,3899.1,3899.0,0.002]
[1760772237732,7.95706475,3899.1,3899.0,0.002]
[1760772241534,5.28706475,3899.1,3899.0,0.002]
[1760772241741,7.95606475,3899.1,3899.0,0.002]
[1760772244036,5.28706475,3899.1,3899.0,0.002]
[1760772244261,7.95606475,3899.1,3899.0,0.002]
[1760772247274,9.32454955,3899.1,3899.0,0.002]
[1760772250741,7.95606475,3899.1,3899.0,0.002]
[1760772250946,14.34606475,3899.1,3899.0,0.002]
[1760772251979,15.73253228,3899.1,3899.0,0.002]
[1760772252172,19.28007394,3899.1,3899.0,0.002]
[1760772252380,2.56495754,3898.7,3898.6,0.002]
[1760772252544,7.54708984,3898.7,3898.6,0.002]
[1760772252740,7.98872788,3898.7,3898.6,0.002]
[1760772253167,5.36543379,3898.7,3898.6,0.002]
[1760772253472,8.03343379,3898.7,3898.6,0.002]
[1760772253676,8.41235508,3898.7,3898.6,0.002]
[1760772255349,8.03343379,3898.7,3898.6,0.002]
[1760772256741,14.42343379,3898.7,3898.6,0.002]
[1760772257347,15.34684418,3898.7,3898.6,0.002]
[1760772258179,14.42343379,3898.7,3898.6,0.002]
[1760772258476,15.34680276,3898.7,3898.6,0.002]
[1760772258776,6.98877625,3898.7,3898.6,2.56702334]
[1760772258944,0.92336897,3899.5,3898.6,0.6356]
[1760772259146,0.55387457,3899.4,3898.6,0.7636]
[1760772259353,3.22087457,3899.3,3899.2,2.56458912]
[1760772260678,0.55387457,3899.3,3899.2,2.56458912]
[1760772261246,2.666,3899.3,3899.2,2.56458912]
[1760772262686,0.0446961,3899.4,3899.2,2.56458912]
[1760772262884,2.666,3899.3,3899.0,0.128]
[1760772263055,2.666,3899.3,3899.2,2.56462864]
[1760772263268,2.666,3899.3,3899.2,2.5646214]
[1760772264281,0.0446961,3899.4,3899.3,2.56456287]
[1760772264782,2.7106961,3899.4,3899.3,2.56456287]
[1760772265584,0.0446961,3899.4,3899.3,2.56456287]
[1760772265901,2.7096961,3899.4,3899.2,2.69261307]
[1760772266197,0.0446961,3899.4,3899.3,2.56456287]
[1760772266394,2.7096961,3899.4,3899.3,2.56456287]
[1760772267100,0.0446961,3899.4,3899.3,2.56456287]
[1760772267284,0.128,3900.3,3899.2,2.69258295]
[1760772267596,1.728,3900.1,3900.0,2.56409253]
[1760772267781,1.728,3900.1,3899.7,0.128]
[1760772267782,2.70968975,3900.1,3899.7,0.128]
[1760772267967,2.70968975,3900.1,3899.9,2.56416669]
[1760772268170,0.04468975,3900.1,3900.0,2.56410256]
[1760772268480,1.77268975,3900.1,3900.0,2.56410256]
[1760772268691,0.04468975,3900.1,3900.0,2.56410256]
[1760772268904,1.39706897,3901.2,3900.0,2.56410256]
[1760772268905,0.128,3900.9,3900.8,2.5635767]
[1760772269395,0.6534,3901.5,3900.9,2.56351098]
[1760772269396,0.128,3901.5,3900.9,2.56351098]
[1760772269585,4.394,3901.0,3900.9,2.56351098]
[1760772269988,2.71067704,3901.0,3900.9,2.69151098]
[1760772270303,3.14107704,3901.0,3900.4,0.128]
[1760772270473,0.03204388,3900.9,3900.6,2.56369003]
[1760772270805,2.664,3900.8,3900.7,2.56363034]
[1760772271093,0.04567704,3901.0,3900.7,0.128]
[1760772271306,2.664,3900.9,3900.2,2.56396996]
[1760772271594,4.98823567,3900.8,3898.8,2.56489176]
[1760772271797,4.98823567,3900.8,3900.1,0.128]
[1760772271798,5.11623567,3900.8,3900.1,0.128]
[1760772272001,2.56364447,3900.7,3900.1,0.128]
[1760772272192,0.03204635,3900.6,3900.1,0.128]
[1760772272391,3.0944,3900.5,3900.1,2.69203032]
[1760772272614,2.664,3900.5,3900.1,2.69203032]
[1760772272820,2.664,3900.5,3899.6,0.7711319]
[1760772272821,0.04468341,3900.7,3899.7,2.56429981]
[1760772273125,0.04468341,3900.7,3900.6,2.56370814]
[1760772273301,2.70868341,3900.7,3900.6,2.56370814]
[1760772273927,0.04468341,3900.7,3900.6,2.56370814]
[1760772274107,0.001,3901.0,3900.9,2.56351098]
[1760772274427,2.664,3901.0,3900.9,2.56351098]
[1760772275931,0.001,3901.0,3900.9,2.56351098]
[1760772278525,0.001,3901.0,3900.9,3.19711098]
[1760772279630,0.001,3901.0,3900.9,3.96796548]
[1760772281417,0.001,3901.0,3900.9,3.19711098]
[1760772282844,0.001,3901.0,3900.9,3.32511098]
[1760772284843,0.001,3901.0,3900.9,4.09596746]
[1760772285143,0.001,3901.0,3900.9,3.32511098]
[1760772291232,0.4314,3901.0,3900.9,2.69151098]
[1760772292448,0.001,3901.0,3900.9,2.69151098]
[1760772292645,0.4314,3901.0,3900.9,0.128]
[1760772292866,0.4314,3901.0,3900.9,2.56351098]
[1760772294057,0.4314,3901.0,3900.0,0.77100903]
[1760772294239,0.6646,3900.9,3900.6,2.56365378]
[1760772294434,0.4304,3900.8,3900.6,2.56365378]
[1760772294640,0.2342,3900.9,3900.6,2.56365378]
[1760772294934,0.4304,3900.8,3900.6,2.56365378]
[1760772295183,0.4304,3900.7,3900.6,2.56365378]
[1760772295360,0.4304,3900.7,3900.5,2.56375568]
[1760772295685,0.4304,3900.6,3900.5,2.56375568]
[1760772295889,3.0894,3900.6,3900.5,2.56375568]
[1760772296684,3.0894,3900.6,3900.4,2.56379297]
[1760772296856,2.659,3900.6,3900.5,2.56377387]
[1760772297490,3.0894,3900.6,3899.8,0.6336]
[1760772297985,3.0894,3900.6,3900.5,2.56377387]
[1760772298381,0.4304,3900.6,3900.5,2.56377387]
[1760772298578,3.0894,3900.6,3900.5,2.56377387]
[1760772300777,0.04567844,3901.0,3900.9,2.56351098]
[1760772300778,0.001,3901.0,3900.9,2.56351098]
[1760772300965,2.659,3901.0,3900.9,2.56351098]
[1760772301690,0.001,3901.0,3900.9,2.56351098]
[1760772302095,2.659,3901.0,3900.9,2.56351098]
[1760772304096,2.659,3901.0,3900.9,2.69151098]
[1760772305098,0.4738,3901.0,3900.9,2.69151098]
[1760772305389,3.1318,3901.0,3900.9,2.69151098]
[1760772305896,2.659,3901.0,3900.9,2.69151098]
[1760772306465,0.001,3901.0,3900.9,2.69151098]
[1760772306660,2.658,3901.0,3900.9,2.69151098]
[1760772307963,0.001,3901.0,3900.9,2.69151098]
[1760772308265,2.658,3901.0,3900.9,2.69151098]
[1760772308465,0.001,3901.0,3900.9,2.69151098]
[1760772308790,2.658,3901.0,3900.9,3.32511098]
[1760772308976,0.001,3901.0,3900.9,3.32511098]
[1760772311581,0.001,3901.0,3900.9,3.42788445]
[1760772312980,0.001,3901.0,3900.9,5.05311098]
[1760772315999,0.4738,3901.0,3900.9,5.05311098]
[1760772316394,0.001,3901.0,3900.9,5.05311098]
[1760772317589,0.4738,3901.0,3900.9,5.05311098]
[1760772318808,0.4738,3901.0,3900.9,4.41951098]
[1760772319328,0.4738,3901.0,3900.9,2.69151098]
[1760772320195,3.1288,3901.0,3900.9,2.69151098]
[1760772320398,3.1288,3901.0,3900.9,0.128]
[1760772320706,3.68167952,3901.0,3900.2,2.56396024]
[1760772320905,1.0577234,3900.9,3900.4,0.128]
[1760772321106,0.55287952,3900.8,3900.4,0.128]
[1760772321306,0.236,3900.5,3900.4,0.128]
[1760772321508,0.7088,3900.5,3900.4,0.128]
[1760772322311,3.2725808,3900.5,3898.9,2.56477425]
[1760772322511,3.14863924,3900.4,3899.8,0.128]
[1760772322711,0.236,3899.9,3899.8,0.128]
[1760772323202,0.7088,3899.9,3899.8,0.128]
[1760772323732,0.75348525,3899.9,3899.8,0.128]
[1760772326742,0.75348525,3899.9,3899.0,0.002]
[1760772326913,2.56436557,3899.6,3899.0,0.002]
[1760772327120,2.56469441,3899.1,3899.0,0.002]
[1760772327329,2.56469441,3899.1,3898.3,0.002]
[1760772327330,2.56482597,3898.9,3898.3,0.002]
[1760772327500,4.52895754,3898.7,3898.3,0.002]
[1760772327700,1.728,3898.4,3898.3,0.002]
[1760772327930,2.59721936,3898.4,3898.3,0.002]
[1760772328252,3.07001936,3898.4,3898.3,0.002]
[1760772328818,7.49672158,3898.4,3898.3,0.002]
[1760772328999,7.46465715,3898.4,3898.3,0.002]
[1760772331717,7.41995493,3898.4,3898.3,0.002]
[1760772333630,4.76595493,3898.4,3898.3,0.002]
[1760772333832,7.45201936,3898.4,3898.3,0.002]
[1760772334033,7.41995493,3898.4,3898.3,0.002]
[1760772334361,7.46466122,3898.4,3898.3,0.002]
[1760772339265,8.66314171,3898.4,3898.3,0.002]
[1760772340142,2.56596425,3897.2,3895.3,2.56719636]
[1760772340349,5.07447513,3897.1,3896.3,2.56648141]
[1760772340556,5.07447513,3897.1,3896.1,2.56666237]
[1760772340869,4.76640337,3897.0,3896.1,2.56666237]
[1760772341065,1.76007677,3896.9,3896.1,2.56666237]
[1760772341254,1.76007677,3896.9,3896.2,2.56659842]
[1760772341457,0.03207677,3896.9,3896.3,2.56650876]
[1760772342238,0.03207677,3896.9,3895.1,2.654]
[1760772342468,0.03207677,3896.9,3895.2,0.6426]
[1760772342668,0.03207677,3896.9,3896.1,2.56662818]
[1760772342872,2.59827708,3896.9,3895.4,0.6336]
[1760772343168,0.4276,3896.8,3895.9,2.56675501]
[1760772343478,2.68607842,3896.7,3895.4,2.56706761]
[1760772343683,2.68607842,3896.7,3895.5,0.6336]
[1760772343836,2.68607842,3896.7,3896.2,2.56658799]
[1760772344150,0.04472955,3896.5,3896.2,2.56658799]
[1760772344347,0.07680962,3896.5,3896.3,0.002]
[1760772344756,0.50440962,3896.5,3896.3,0.002]
[1760772344966,0.07680962,3896.5,3896.3,0.002]
[1760772345556,0.50440962,3896.5,3896.3,0.002]
[1760772346284,0.04472955,3896.5,3896.3,2.56848677]
[1760772346445,0.07680962,3896.5,3896.3,2.56848677]
[1760772346644,0.2328,3897.5,3896.3,0.6356]
[1760772346895,0.04472431,3897.0,3896.9,2.56614231]
[1760772349482,2.653,3897.8,3897.4,2.5658131]
[1760772349653,1.76007019,3897.7,3897.5,2.56573075]
[1760772349845,1.76007019,3897.7,3897.3,0.128]
[1760772350046,1.76007019,3897.7,3897.4,2.56580842]
[1760772350678,2.30971241,3897.7,3897.3,0.128]
[1760772350979,0.128,3897.5,3896.9,0.128]
[1760772351151,1.76007019,3897.7,3897.4,2.5658131]
[1760772351350,2.31013213,3897.7,3897.4,2.5658131]
[1760772351556,2.31013213,3897.7,3897.3,2.56586979]
[1760772352592,0.55006194,3897.6,3897.3,2.56587894]
[1760772352758,1.76007019,3897.7,3897.3,2.56587894]
[1760772353098,0.55055204,3897.6,3897.4,2.56579536]
[1760772353257,0.5509318,3897.5,3897.4,2.56579536]
[1760772354160,1.76007019,3897.7,3897.3,2.56584755]
[1760772354362,0.55092703,3897.6,3897.3,2.56584755]
[1760772354660,0.55092703,3897.5,3897.3,2.56584755]
[1760772354889,0.03206937,3897.8,3897.4,2.56581056]
[1760772355097,0.55136159,3897.7,3897.2,2.69394317]
[1760772355398,0.5834326,3897.6,3897.2,2.69394317]
[1760772355601,6.39,3898.3,3896.7,2.56622577]
[1760772355602,0.92336897,3898.2,3897.7,2.56561561]
[1760772355760,0.58392818,3898.1,3897.9,2.56544422]
[1760772356079,0.55186128,3898.0,3897.9,2.56544422]
[1760772356688,0.55186128,3898.0,3897.9,2.69344422]
[1760772357964,0.001,3898.6,3898.5,2.56508913]
[1760772358178,0.5534919,3898.6,3898.5,2.69308913]
[1760772359298,0.001,3898.6,3898.5,2.69308913]
[1760772360306,0.001,3898.6,3898.5,2.56508913]
[1760772361698,0.001,3898.6,3898.5,3.19868913]
[1760772361885,0.001,3898.6,3898.5,5.84968913]
[1760772364370,0.001,3898.6,3898.5,3.19868913]
[1760772364672,0.001,3898.6,3898.5,5.84968913]
[1760772364905,0.001,3898.6,3898.5,3.19868913]
[1760772365122,0.001,3898.6,3898.5,5.21608913]
[1760772365471,0.001,3898.6,3898.5,2.56508913]
[1760772365671,0.001,3898.6,3898.5,3.19868913]
[1760772370272,0.001,3898.6,3898.5,3.32668913]
[1760772371210,0.001,3898.6,3898.5,5.97568913]
[1760772372881,0.001,3898.6,3898.5,3.32668913]
[1760772373075,0.456,3898.6,3898.5,2.69308913]
[1760772373281,0.001,3898.6,3898.5,2.69308913]
[1760772373679,0.456,3898.6,3898.5,2.69308913]
[1760772374811,0.456,3898.6,3898.5,0.128]
[1760772374980,0.456,3898.6,3898.1,2.56535235]
[1760772375313,0.48706361,3898.5,3898.2,2.69327675]
[1760772375476,0.03206361,3898.5,3898.3,2.56519804]
[1760772375808,0.455,3898.4,3897.3,0.002]
[1760772376013,0.455,3898.4,3898.0,2.56539441]
[1760772376207,6.39,3898.5,3897.9,2.56547405]
[1760772376396,0.237,3898.0,3897.9,2.56547405]
[1760772376804,0.692,3898.0,3897.7,2.56555124]
[1760772377124,0.455,3897.9,3897.8,2.56554979]
[1760772377277,0.455,3897.9,3897.5,2.56568659]
[1760772377481,0.001,3898.6,3898.5,2.56508913]
[1760772377683,0.001,3898.6,3898.5,3.19868913]
[1760772385926,0.001,3898.6,3898.5,3.32668913]
[1760772388324,0.001,3898.6,3898.5,4.92668913]
[1760772388696,0.001,3898.6,3898.5,7.57368913]
[1760772389007,0.001,3899.4,3898.5,7.57368913]
[1760772389008,0.1926,3899.9,3898.5,7.57368913]
[1760772389212,0.1926,3899.9,3899.8,2.56423406]
[1760772391133,0.6466,3899.9,3899.8,2.56423406]
[1760772391914,0.04468782,3900.0,3899.8,2.56423406]
[1760772391915,0.04468782,3900.0,3899.9,2.56416831]
[1760772392096,0.454,3900.3,3900.2,2.56397107]
[1760772393314,2.648,3900.5,3900.3,2.56390534]
[1760772393712,0.26664799,3900.4,3900.2,2.56390983]
[1760772393917,0.454,3900.3,3900.2,2.56397107]
[1760772397113,0.454,3900.3,3898.9,1.9204]
[1760772397345,0.48604963,3900.2,3899.1,2.56469441]
[1760772397537,0.454,3900.1,3899.9,2.56416603]
[1760772397738,0.454,3900.0,3899.9,2.56416603]
[1760772397944,0.49868651,3900.0,3899.9,2.56416603]
[1760772398733,0.49868651,3900.0,3899.8,0.128]
[1760772398941,0.2513521,3899.9,3899.7,2.5642913]
[1760772399246,3.099,3899.8,3899.7,2.5642913]
[1760772399448,3.099,3899.8,3899.6,0.128]
[1760772399647,0.03205374,3899.7,3899.6,0.128]
[1760772399819,0.48605374,3899.7,3899.6,2.69236557]
[1760772400619,0.48605374,3899.7,3899.6,0.128]
[1760772400954,0.48605374,3899.7,3899.5,2.56436557]
[1760772401122,0.454,3899.6,3899.3,2.56454221]
[1760772401323,1.76005374,3899.7,3899.3,2.56454221]
[1760772401324,0.48605539,3899.5,3899.3,2.56454221]
[1760772401530,0.03205539,3899.5,3899.3,2.56454221]
[1760772401827,0.454,3899.4,3899.3,2.56454221]
[1760772403254,3.48830133,3900.3,3899.2,0.002]
[1760772403255,0.001,3900.3,3899.2,0.002]
[1760772403457,0.55325494,3900.3,3900.2,2.56397107]
[1760772403758,2.646,3900.3,3900.2,2.56397107]
[1760772404126,3.1,3900.3,3900.2,2.56397107]
[1760772404650,3.1,3900.3,3900.1,2.56403221]
[1760772404844,2.646,3900.3,3900.1,2.56403221]
[1760772405059,3.1,3900.3,3900.2,2.56397107]
[1760772407259,3.1,3900.3,3900.1,2.56402446]
[1760772407447,2.646,3900.3,3900.1,2.56402446]
[1760772407644,0.48604963,3900.2,3900.0,2.56408223]
[1760772407858,0.03204963,3900.2,3900.1,2.56403681]
[1760772408754,0.48604963,3900.2,3900.0,2.56408822]
[1760772409532,0.48604963,3900.2,3900.1,2.56403681]
[1760772409769,1.03917412,3900.2,3899.2,0.002]
[1760772409969,0.48604963,3900.2,3899.8,2.56422786]
[1760772410129,0.2193,3899.9,3899.8,2.56422786]
[1760772410326,3.3173,3899.9,3899.8,2.56422786]
[1760772411135,3.3173,3899.9,3899.7,2.56424742]
[1760772411331,0.48605292,3899.8,3899.7,2.56424742]
[1760772411957,0.03205292,3899.8,3899.7,2.56424742]
[1760772412239,2.8633,3899.9,3899.8,2.56423406]
[1760772412439,3.3173,3899.9,3899.8,2.56423406]
[1760772412858,3.3173,3899.9,3899.7,2.56428236]
[1760772413065,0.03205292,3899.8,3899.7,2.56428236]
[1760772413366,0.48605292,3899.8,3899.7,2.56428236]
[1760772414470,0.48605292,3899.8,3899.6,2.69235925]
[1760772414772,0.454,3899.7,3899.6,2.69235925]
[1760772415159,0.03205292,3899.8,3899.7,2.56429981]
[1760772415467,0.48605292,3899.8,3899.7,2.56429981]
[1760772418066,1.03975862,3899.8,3899.7,2.56429981]
[1760772418265,1.03975862,3899.8,3899.6,0.128]
[1760772418574,1.00770657,3899.7,3899.5,2.56438328]
[1760772418750,0.454,3899.6,3899.5,2.56438328]
[1760772418949,0.454,3899.6,3899.4,2.56449432]
[1760772419182,3.1111,3899.5,3899.4,2.56449432]
[1760772420539,2.643,3899.5,3899.2,0.002]
[1760772420740,1.05383466,3899.4,3899.2,0.002]
[1760772420980,0.55367845,3899.3,3899.2,0.002]
[1760772421137,1.02177845,3899.3,3899.2,0.002]
[1760772421664,1.05383548,3899.3,3899.2,0.002]
[1760772423293,1.02177845,3899.3,3899.2,0.002]
[1760772423780,1.06647444,3899.3,3899.2,0.002]
[1760772424724,0.59837444,3899.3,3899.2,2.56662864]
[1760772424870,2.68669599,3899.3,3899.2,2.56662864]
[1760772426199,0.04469599,3899.3,3899.2,2.56662864]
[1760772426398,2.68669599,3899.3,3899.2,2.56662864]
[1760772426602,0.001,3899.9,3899.8,2.56423406]
[1760772426903,2.643,3899.9,3899.8,2.56423406]
[1760772428202,0.001,3899.9,3899.8,2.56423406]
[1760772428409,2.643,3899.9,3899.8,2.56423406]
[1760772429179,2.643,3899.9,3899.7,2.56429884]
[1760772429803,3.098,3899.9,3899.7,2.56429884]
[1760772430002,3.098,3899.9,3899.8,2.56423406]
[1760772430303,2.643,3899.9,3899.8,2.56423406]
[1760772432104,2.643,3899.9,3899.6,0.128]
[1760772432411,0.03205292,3899.8,3899.6,2.69235233]
[1760772432611,0.03205292,3899.8,3899.7,2.56429981]
[1760772432810,2.643,3899.9,3899.8,2.56423406]
[1760772433017,2.642,3899.9,3899.8,2.56423406]
[1760772436292,2.642,3899.9,3899.7,2.56428424]
[1760772436600,0.03205292,3899.8,3899.7,2.56428424]
[1760772437790,2.642,3899.9,3899.7,2.56428424]
[1760772438197,0.6893,3899.8,3899.6,0.128]
[1760772438394,0.6893,3899.8,3899.2,0.002]
[1760772438599,0.6893,3899.8,3899.7,2.56429981]
[1760772438922,3.88368112,3899.8,3899.3,2.69250268]
[1760772439099,3.3303,3899.8,3899.3,2.69250268]
[1760772439296,3.3303,3899.8,3899.5,2.56438155]
[1760772439496,3.3303,3899.8,3899.3,2.69250268]
[1760772439722,3.3303,3899.8,3899.3,0.128]
[1760772439923,3.3303,3899.8,3899.4,2.5644971]